[Event "GER-ch Youth U16w 2019"]
[Site "Willingen"]
[Date "2019.06.12"]
[Round "6.9"]
[White "Peschel, Julia"]
[Black "Ziegenfuss, Larissa"]
[Result "0-1"]
[ECO "B20"]
[WhiteElo "1275"]
[BlackElo "1771"]
[Annotator "NA"]
[PlyCount "96"]
[EventDate "2019.06.07"]
[EventType "swiss"]
[EventRounds "9"]
[EventCountry "GER"]
[SourceTitle "playchess.com"]
[Source "ChessBase"]
[SourceQuality "1"]
[TimeControl "40/5400+30:1800+30"]

1. e4 {[%emt 0:00:00]} c5 {[%emt 0:00:00]} 2. d3 {[%emt 0:00:00]} e6 {[%emt 0:00:11]} 3. g3 {[%emt 0:00:00]} Nc6 {[%emt 0:00:19]} 4. Bg2 {[%emt 0:00:00]} g6 {[%emt 0:00:50]} 5. f4 {[%emt 0:00:18]} Bg7 {[%emt 0:00:53]} 6. Nf3 {[%emt 0:00:31]} Nge7 {[%emt 0:00:56]} 7. O-O {[%emt 0:01:55]} d5 {[%emt 0:02:33]} 8. e5 {[%emt 0:01:18]} Qc7 {[%emt 0:02:16]} 9. Be3 {[%emt 0:04:32]} b6 {[%emt 0:01:34]} 10. c3 {[%emt 0:01:21]} Ba6 {[%emt 0:03:56]} 11. Re1 {[%emt 0:07:11]} O-O {[%emt 0:04:14]} 12. a3 {[%emt 0:12:07]} Rad8 {[%emt 0:03:08]} 13. d4 {[%emt 0:05:25]} cxd4 {[%emt 0:02:43]} 14. cxd4 {[%emt 0:01:45]} Nf5 {[%emt 0:03:41]} 15. Bf2 {[%emt 0:01:22]} Na5 {[%emt 0:03:01]} 16. g4 {[%emt 0:03:13]} Ne7 {[%emt 0:00:35]} 17. Nbd2 {[%emt 0:02:32]} Qd7 {[%emt 0:01:31]} 18. Nh4 {[%emt 0:06:27]} Rc8 {[%emt 0:03:26]} 19. Bh3 {[%emt 0:02:32]} Rc7 {[%emt 0:02:44]} 20. Rc1 {[%emt 0:03:59]} Rxc1 {[%emt 0:01:51]} 21. Qxc1 {[%emt 0:00:07]} Rc8 {[%emt 0:00:04]} 22. Qb1 {[%emt 0:02:14]} Bh6 {[%emt 0:02:18]} 23. Be3 {[%emt 0:02:18]} Qc6 {[%emt 0:06:44]} 24. b4 {[%emt 0:19:11]} Nc4 {[%emt 0:04:34]} 25. Nxc4 {[%emt 0:00:57]} Bxc4 {[%emt 0:00:21]} 26. f5 {[%emt 0:02:21]} Bxe3+ {[%emt 0:01:11]} 27. Rxe3 {[%emt 0:00:30]} Ba2 {[%emt 0:15:02]} 28. Qb2 {[%emt 0:04:32]} Qc1+ {[%emt 0:00:10]} 29. Qxc1 {[%emt 0:00:04]} Rxc1+ {[%emt 0:00:06]} 30. Kf2 {[%emt 0:00:17]} Nc6 {[%emt 0:13:27]} 31. Nf3 {[%emt 0:02:19]} Rc4 {[%emt 0:11:57]} 32. fxe6 {[%emt 0:09:12]} fxe6 {[%emt 0:00:11]} 33. g5 {[%emt 0:01:21]} Kf7 {[%emt 0:00:32]} 34. Bf1 {[%emt 0:00:50]} Rc1 {[%emt 0:01:55]} 35. Bb5 {[%emt 0:00:42]} Ne7 {[%emt 0:01:10]} 36. Nh4 {[%emt 0:01:19]} Bc4 37. Ba4 b5 {[%emt 0:04:15]} 38. Bb3 {[%emt 0:00:56]} Rb1 {[%emt 0:02:15]} 39. Bxc4 {[%emt 0:01:51]} bxc4 {[%emt 0:00:18]} 40. Rc3 {[%emt 0:00:14]} Rb2+ {[%emt 0:01:14]} 41. Kg3 {[%emt 0:31:58]} Nf5+ {[%emt 0:30:38]} 42. Nxf5 {[%emt 0:00:00]} gxf5 {[%emt 0:00:00]} 43. h4 {[%emt 0:00:00]} Rb3 {[%emt 0:00:00]} 44. Rf3 {[%emt 0:00:00]} c3 {[%emt 0:00:00]} 45. Kf2 {[%emt 0:00:00]} c2 {[%emt 0:00:00]} 46. Rxb3 {[%emt 0:00:00]} c1=Q {[%emt 0:00:00]} 47. Rd3 {[%emt 0:00:00]} Qc2+ {[%emt 0:00:00]} 48. Ke3 {[%emt 0:00:00]} f4+ {[%emt 0:00:00] normal} 0-1

[Event "GER-ch Youth U16w 2019"]
[Site "Willingen"]
[Date "2019.06.12"]
[Round "6.10"]
[White "Schneider, Katharina"]
[Black "Wucherer, Sophie"]
[Result "1/2-1/2"]
[ECO "B41"]
[WhiteElo "1784"]
[BlackElo "1496"]
[Annotator "NA"]
[PlyCount "97"]
[EventDate "2019.06.07"]
[EventType "swiss"]
[EventRounds "9"]
[EventCountry "GER"]
[SourceTitle "playchess.com"]
[Source "ChessBase"]
[SourceQuality "1"]
[TimeControl "40/5400+30:1800+30"]

1. e4 {[%emt 0:00:00]} c5 {[%emt 0:00:00]} 2. Nf3 {[%emt 0:00:00]} e6 {[%emt 0:00:00]} 3. d4 {[%emt 0:00:00]} cxd4 {[%emt 0:00:00]} 4. Nxd4 {[%emt 0:00:00]} a6 {[%emt 0:00:00]} 5. c4 {[%emt 0:00:01]} Nf6 {[%emt 0:00:19]} 6. Nc3 {[%emt 0:00:08]} Qc7 {[%emt 0:00:13]} 7. a3 {[%emt 0:00:27]} d6 {[%emt 0:06:56]} 8. Be3 {[%emt 0:05:09]} Nc6 {[%emt 0:12:31]} 9. Rc1 {[%emt 0:04:04]} Qe7 {[%emt 0:02:00]} 10. Be2 {[%emt 0:08:15]} Bd7 {[%emt 0:06:58]} 11. O-O {[%emt 0:03:28]} g6 {[%emt 0:00:38]} 12. b4 {[%emt 0:02:31]} Bg7 {[%emt 0:01:15]} 13. c5 {[%emt 0:16:24]} Rd8 {[%emt 0:22:40]} 14. cxd6 {[%emt 0:11:31]} Qxd6 {[%emt 0:00:21]} 15. f4 {[%emt 0:01:00]} Nxd4 {[%emt 0:06:41]} 16. Bxd4 {[%emt 0:10:08]} Bc6 {[%emt 0:00:51]} 17. Bxf6 {[%emt 0:01:21]} Qxd1 {[%emt 0:00:59]} 18. Rfxd1 {[%emt 0:00:55]} Rxd1+ {[%emt 0:03:30]} 19. Rxd1 {[%emt 0:02:25]} Bxf6 {[%emt 0:00:11]} 20. b5 {[%emt 0:05:39]} axb5 {[%emt 0:01:48]} 21. Nxb5 {[%emt 0:00:08]} O-O {[%emt 0:02:04]} 22. e5 {[%emt 0:01:57]} Be7 {[%emt 0:00:10]} 23. Nd6 {[%emt 0:01:09]} Ra8 {[%emt 0:01:47]} 24. Ra1 {[%emt 0:08:24]} Ra4 {[%emt 0:01:40]} 25. g3 {[%emt 0:02:59]} Bd8 {[%emt 0:01:24]} 26. Rb1 {[%emt 0:02:31]} Ra7 {[%emt 0:14:56]} 27. Rb3 {[%emt 0:04:08]} Kf8 {[%emt 0:03:20]} 28. Kf2 {[%emt 0:01:55]} h5 {[%emt 0:06:20]} 29. Bf3 {[%emt 0:02:11]} Bxf3 {[%emt 0:01:44]} 30. Kxf3 {[%emt 0:00:11]} Be7 {[%emt 0:00:36]} 31. Ke4 {[%emt 0:02:26]} Ra4+ {[%emt 0:00:33]} 32. Kd3 {[%emt 0:00:34]} Ra7 {[%emt 0:01:22]} 33. Kc4 {[%emt 0:00:27]} Ra6 {[%emt 0:01:01]} 34. Rxb7 {[%emt 0:01:55]} Rxa3 {[%emt 0:00:14]} 35. Rb8+ {[%emt 0:00:17]} Kg7 {[%emt 0:00:20]} 36. Rb2 {[%emt 0:00:11]} Ra5 {[%emt 0:00:33]} 37. Rd2 {[%emt 0:01:25]} h4 {[%emt 0:00:44]} 38. Kb4 {[%emt 0:01:24]} Ra1 {[%emt 0:01:03]} 39. Kc5 {[%emt 0:00:32]} Rc1+ {[%emt 0:00:39]} 40. Kb6 {[%emt 0:00:17]} hxg3 {[%emt 0:00:51]} 41. hxg3 {[%emt 0:30:09]} Rf1 {[%emt 0:07:29]} 42. Kc7 {[%emt 0:00:00]} Ra1 {[%emt 0:07:29]} 43. Rb2 {[%emt 0:00:00]} Ra7+ {[%emt 0:04:50]} 44. Rb7 {[%emt 0:00:00]} Rxb7+ {[%emt 0:02:50]} 45. Kxb7 {[%emt 0:00:00]} f6 {[%emt 0:04:23]} 46. Kc7 {[%emt 0:00:00]} g5 {[%emt 0:02:01]} 47. Kd7 {[%emt 0:00:00]} gxf4 {[%emt 0:03:23]} 48. gxf4 {[%emt 0:00:00]} fxe5 {[%emt 0:00:33]} 49. fxe5 {[%emt 0:00:00] normal} 1/2-1/2

[Event "GER-ch Youth U16w 2019"]
[Site "Willingen"]
[Date "2019.06.12"]
[Round "6.11"]
[White "Jacoby, Angelina"]
[Black "Huppert, Anna"]
[Result "1/2-1/2"]
[ECO "A46"]
[WhiteElo "1412"]
[BlackElo "1515"]
[Annotator "NA"]
[PlyCount "116"]
[EventDate "2019.06.07"]
[EventType "swiss"]
[EventRounds "9"]
[EventCountry "GER"]
[SourceTitle "playchess.com"]
[Source "ChessBase"]
[SourceQuality "1"]
[TimeControl "40/5400+30:1800+30"]

1. d4 {[%emt 0:00:00]} Nf6 {[%emt 0:00:00]} 2. Nf3 {[%emt 0:00:00]} e6 {[%emt 0:00:00]} 3. Bf4 {[%emt 0:00:12]} c5 {[%emt 0:02:21]} 4. e3 {[%emt 0:01:43]} Nc6 {[%emt 0:00:31]} 5. c3 {[%emt 0:07:20]} d5 {[%emt 0:00:15]} 6. Nbd2 {[%emt 0:00:24]} b6 {[%emt 0:01:07]} 7. Bd3 {[%emt 0:03:23]} Bb7 {[%emt 0:01:50]} 8. h3 {[%emt 0:00:45]} cxd4 {[%emt 0:00:41]} 9. exd4 {[%emt 0:00:34]} Be7 {[%emt 0:00:34]} 10. O-O {[%emt 0:00:09]} O-O {[%emt 0:00:28]} 11. Nh2 {[%emt 0:04:29]} a5 {[%emt 0:01:58]} 12. Ng4 {[%emt 0:00:23]} Ba6 {[%emt 0:08:37]} 13. Bxa6 {[%emt 0:07:42]} Rxa6 {[%emt 0:00:30]} 14. Qe2 {[%emt 0:00:33]} Ra8 {[%emt 0:05:09]} 15. Bh2 {[%emt 0:05:39]} Re8 {[%emt 0:15:33]} 16. f4 {[%emt 0:04:59]} Qc8 {[%emt 0:08:12]} 17. Qf3 {[%emt 0:04:10]} b5 {[%emt 0:12:15]} 18. Rae1 {[%emt 0:14:12]} b4 {[%emt 0:05:42]} 19. f5 {[%emt 0:06:20]} bxc3 {[%emt 0:03:52]} 20. bxc3 {[%emt 0:00:55]} Nxg4 {[%emt 0:06:44]} 21. Qxg4 {[%emt 0:00:17]} exf5 {[%emt 0:04:02]} 22. Qxf5 {[%emt 0:02:01]} Qxf5 {[%emt 0:00:53]} 23. Rxf5 {[%emt 0:00:06]} Rad8 {[%emt 0:01:30]} 24. Rb1 {[%emt 0:04:23]} g6 {[%emt 0:04:07]} 25. Rff1 {[%emt 0:02:06]} a4 {[%emt 0:01:35]} 26. Rb7 {[%emt 0:03:32]} a3 {[%emt 0:04:04]} 27. Nf3 {[%emt 0:12:35]} f6 {[%emt 0:03:34]} 28. Rb5 {[%emt 0:05:21]} Bf8 {[%emt 0:02:27]} 29. Kf2 {[%emt 0:00:58]} Rd7 {[%emt 0:01:59]} 30. Re1 {[%emt 0:04:32]} Kf7 {[%emt 0:01:59]} 31. Rxe8 {[%emt 0:00:51]} Kxe8 {[%emt 0:00:07]} 32. Rb6 {[%emt 0:00:37]} Na5 {[%emt 0:02:09]} 33. Nd2 {[%emt 0:01:49]} f5 {[%emt 0:00:35]} 34. Rb8+ {[%emt 0:01:03]} Kf7 {[%emt 0:00:50]} 35. Rc8 {[%emt 0:00:37]} Be7 {[%emt 0:00:45]} 36. Rc7 {[%emt 0:01:23]} Rxc7 {[%emt 0:00:28]} 37. Bxc7 {[%emt 0:00:05]} Nc6 {[%emt 0:00:15]} 38. Nf3 {[%emt 0:00:44]} Ke6 {[%emt 0:00:26]} 39. Ke2 {[%emt 0:00:34]} Na7 {[%emt 0:00:40]} 40. Kd3 {[%emt 0:00:51]} Nb5 {[%emt 0:00:20]} 41. Ba5 {[%emt 0:30:16]} Kd7 {[%emt 0:30:47]} 42. Kc2 {[%emt 0:00:30]} Nd6 {[%emt 0:00:00]} 43. Nd2 {[%emt 0:00:00]} Nb5 {[%emt 0:00:00]} 44. Kb3 {[%emt 0:00:00]} Kc6 {[%emt 0:00:00]} 45. Nb1 {[%emt 0:00:00]} h5 {[%emt 0:00:00]} 46. Nd2 {[%emt 0:00:00]} g5 {[%emt 0:00:00]} 47. Nf3 {[%emt 0:00:00]} g4 {[%emt 0:00:00]} 48. hxg4 {[%emt 0:00:00]} fxg4 {[%emt 0:00:00]} 49. Ne5+ {[%emt 0:00:00]} Kb7 {[%emt 0:00:00]} 50. Ng6 {[%emt 0:00:00]} Bd6 {[%emt 0:00:00]} 51. Bb4 {[%emt 0:00:00]} Bxb4 {[%emt 0:00:00]} 52. Kxb4 {[%emt 0:00:00]} Kb6 {[%emt 0:00:00]} 53. Nf4 {[%emt 0:00:00]} h4 {[%emt 0:00:00]} 54. Nxd5+ {[%emt 0:00:00]} Kb7 {[%emt 0:00:00]} 55. Nf4 {[%emt 0:00:00]} Kb6 {[%emt 0:00:00]} 56. d5 {[%emt 0:02:06]} Ka6 {[%emt 0:04:31]} 57. c4 {[%emt 0:00:38]} Nd6 {[%emt 0:00:34]} 58. c5 {[%emt 0:00:36]} Nf7 {[%emt 0:01:27] normal} 1/2-1/2

[Event "GER-ch Youth U16w 2019"]
[Site "Willingen"]
[Date "2019.06.12"]
[Round "6.12"]
[White "Sinnhoefer, Lilian"]
[Black "Dietz, Helena"]
[Result "1/2-1/2"]
[ECO "B07"]
[WhiteElo "1396"]
[BlackElo "1534"]
[Annotator "NA"]
[PlyCount "104"]
[EventDate "2019.06.07"]
[EventType "swiss"]
[EventRounds "9"]
[EventCountry "GER"]
[SourceTitle "playchess.com"]
[Source "ChessBase"]
[SourceQuality "1"]
[TimeControl "40/5400+30:1800+30"]

1. e4 {[%emt 0:00:00]} d6 {[%emt 0:00:00]} 2. d4 {[%emt 0:00:00]} Nf6 {[%emt 0:00:00]} 3. Nc3 {[%emt 0:00:17]} g6 {[%emt 0:00:01]} 4. g3 {[%emt 0:01:17]} Bg7 {[%emt 0:00:46]} 5. Bg2 {[%emt 0:01:25]} O-O {[%emt 0:00:34]} 6. h3 {[%emt 0:03:07]} Nbd7 {[%emt 0:02:10]} 7. Nf3 {[%emt 0:02:59]} e5 {[%emt 0:02:05]} 8. O-O {[%emt 0:04:32]} Re8 {[%emt 0:06:16]} 9. Be3 {[%emt 0:07:21]} exd4 {[%emt 0:05:29]} 10. Nxd4 {[%emt 0:02:20]} Nc5 {[%emt 0:01:54]} 11. Bg5 {[%emt 0:11:01]} h6 {[%emt 0:01:56]} 12. Bxf6 {[%emt 0:04:45]} Bxf6 {[%emt 0:06:47]} 13. Re1 {[%emt 0:03:39]} Ne6 {[%emt 0:06:34]} 14. Nxe6 {[%emt 0:10:45]} Bxe6 {[%emt 0:01:57]} 15. f4 {[%emt 0:05:31]} Bg7 {[%emt 0:07:43]} 16. Qd3 {[%emt 0:12:25]} c6 {[%emt 0:08:35]} 17. Rad1 {[%emt 0:05:24]} Qb6+ {[%emt 0:02:54]} 18. Re3 {[%emt 0:04:48]} Qxb2 {[%emt 0:04:23]} 19. Rb1 {[%emt 0:02:45]} Qxc3 {[%emt 0:01:56]} 20. Qxc3 {[%emt 0:00:22]} Bxc3 {[%emt 0:00:33]} 21. Rxc3 {[%emt 0:00:05]} Re7 {[%emt 0:03:19]} 22. a3 {[%emt 0:01:20]} Rd8 {[%emt 0:02:59]} 23. Rd3 {[%emt 0:02:27]} Red7 {[%emt 0:10:29]} 24. Kf2 {[%emt 0:02:02]} b6 {[%emt 0:07:02]} 25. Rbd1 {[%emt 0:03:49]} h5 {[%emt 0:02:59]} 26. Rc3 {[%emt 0:02:10]} Rc8 {[%emt 0:01:32]} 27. Rcd3 {[%emt 0:01:55]} Rcd8 {[%emt 0:01:03]} 28. Rc3 {[%emt 0:00:26]} c5 {[%emt 0:00:15]} 29. Rcd3 {[%emt 0:00:40]} Kg7 {[%emt 0:01:31]} 30. Ke3 {[%emt 0:02:34]} f5 {[%emt 0:01:51]} 31. e5 {[%emt 0:00:54]} d5 {[%emt 0:03:20]} 32. c3 {[%emt 0:00:42]} Kh6 {[%emt 0:01:50]} 33. h4 {[%emt 0:00:24]} a6 {[%emt 0:01:44]} 34. a4 {[%emt 0:00:59]} b5 {[%emt 0:01:09]} 35. axb5 {[%emt 0:00:03]} axb5 {[%emt 0:00:05]} 36. Rb1 {[%emt 0:00:17]} d4+ {[%emt 0:00:26]} 37. cxd4 {[%emt 0:00:27]} cxd4+ {[%emt 0:00:30]} 38. Kf2 {[%emt 0:00:12]} Bc4 {[%emt 0:00:31]} 39. Rd2 {[%emt 0:00:22]} Rc7 {[%emt 0:01:19]} 40. Bf1 {[%emt 0:01:41]} Ra7 {[%emt 0:01:05]} 41. Rbd1 {[%emt 0:31:35]} Rad7 {[%emt 0:11:06]} 42. Bxc4 {[%emt 0:00:00]} bxc4 {[%emt 0:02:27]} 43. e6 {[%emt 0:00:00]} c3 {[%emt 0:04:21]} 44. exd7 {[%emt 0:00:00]} cxd2 {[%emt 0:00:14]} 45. Rxd2 {[%emt 0:00:00]} Rxd7 {[%emt 0:00:14]} 46. Ke2 {[%emt 0:00:00]} Re7+ {[%emt 0:00:28]} 47. Kf2 {[%emt 0:00:00]} Re4 {[%emt 0:00:59]} 48. Re2 {[%emt 0:00:00]} Kg7 {[%emt 0:01:04]} 49. Ra2 {[%emt 0:00:00]} Kf7 {[%emt 0:02:12]} 50. Ra6 {[%emt 0:00:00]} Re6 {[%emt 0:01:36]} 51. Ra4 {[%emt 0:00:00]} Rd6 {[%emt 0:00:51]} 52. Ke2 {[%emt 0:00:00]} Ke6 {[%emt 0:07:14] normal} 1/2-1/2

[Event "GER-ch Youth U16w 2019"]
[Site "Willingen"]
[Date "2019.06.12"]
[Round "6.13"]
[White "Zell, Hannah"]
[Black "Genova, Magdalina"]
[Result "1-0"]
[ECO "B51"]
[WhiteElo "1473"]
[BlackElo "1421"]
[Annotator "NA"]
[PlyCount "130"]
[EventDate "2019.06.07"]
[EventType "swiss"]
[EventRounds "9"]
[EventCountry "GER"]
[SourceTitle "playchess.com"]
[Source "ChessBase"]
[SourceQuality "1"]
[TimeControl "40/5400+30:1800+30"]

1. e4 {[%emt 0:00:00]} c5 {[%emt 0:00:00]} 2. Nf3 {[%emt 0:00:00]} d6 {[%emt 0:00:00]} 3. Bb5+ {[%emt 0:00:00]} Nd7 {[%emt 0:00:04]} 4. O-O {[%emt 0:00:00]} Ngf6 {[%emt 0:02:50]} 5. Re1 {[%emt 0:00:06]} a6 {[%emt 0:01:41]} 6. Bd3 {[%emt 0:00:07]} b5 {[%emt 0:04:12]} 7. c4 {[%emt 0:00:40]} b4 {[%emt 0:09:47]} 8. a3 {[%emt 0:01:45]} bxa3 {[%emt 0:15:49]} 9. Rxa3 {[%emt 0:03:11]} Bb7 {[%emt 0:03:52]} 10. Nc3 {[%emt 0:03:45]} e6 {[%emt 0:00:25]} 11. Bc2 {[%emt 0:05:38]} Be7 {[%emt 0:07:28]} 12. d3 {[%emt 0:04:50]} Nb6 {[%emt 0:02:19]} 13. Na4 {[%emt 0:08:02]} O-O {[%emt 0:04:23]} 14. Bd2 {[%emt 0:04:10]} Nxa4 {[%emt 0:08:47]} 15. Bxa4 {[%emt 0:00:46]} d5 {[%emt 0:11:51]} 16. exd5 {[%emt 0:18:24]} exd5 {[%emt 0:00:13]} 17. Ba5 {[%emt 0:03:11]} Qd6 {[%emt 0:06:03]} 18. Rb3 {[%emt 0:02:03]} Rab8 {[%emt 0:01:56]} 19. Rb6 {[%emt 0:01:48]} Qc7 {[%emt 0:02:07]} 20. Rxa6 {[%emt 0:05:07]} Qc8 {[%emt 0:00:55]} 21. Rb6 {[%emt 0:03:44]} Bd8 {[%emt 0:01:08]} 22. Rb5 {[%emt 0:00:27]} Bxa5 {[%emt 0:00:38]} 23. Rxa5 {[%emt 0:00:11]} Qc7 {[%emt 0:01:04]} 24. Rb5 {[%emt 0:01:03]} Bc6 {[%emt 0:01:07]} 25. Rxb8 {[%emt 0:00:35]} Rxb8 {[%emt 0:00:31]} 26. Bxc6 {[%emt 0:00:20]} Qxc6 {[%emt 0:00:03]} 27. Qc2 {[%emt 0:00:57]} Qb6 {[%emt 0:02:51]} 28. Re2 {[%emt 0:01:06]} h6 {[%emt 0:00:43]} 29. g3 {[%emt 0:01:17]} Qb7 {[%emt 0:01:04]} 30. Ne5 {[%emt 0:02:54]} Re8 {[%emt 0:00:48]} 31. Ng4 {[%emt 0:07:01]} Rxe2 {[%emt 0:08:16]} 32. Nxf6+ {[%emt 0:00:10]} gxf6 {[%emt 0:00:07]} 33. Qxe2 {[%emt 0:00:05]} dxc4 {[%emt 0:01:45]} 34. dxc4 {[%emt 0:00:10]} Qb4 {[%emt 0:00:58]} 35. Qc2 {[%emt 0:02:23]} Qe1+ {[%emt 0:00:13]} 36. Kg2 {[%emt 0:00:07]} Qe5 {[%emt 0:00:12]} 37. f4 {[%emt 0:02:12]} Qd6 {[%emt 0:00:09]} 38. Kf3 {[%emt 0:02:06]} Kg7 {[%emt 0:01:04]} 39. h4 {[%emt 0:02:45]} Qc6+ {[%emt 0:00:47]} 40. Qe4 {[%emt 0:03:15]} Qb6 {[%emt 0:00:38]} 41. Qe2 {[%emt 0:34:39]} Qc6+ {[%emt 0:02:03]} 42. Ke3 {[%emt 0:00:00]} Qe6+ {[%emt 0:04:00]} 43. Kd3 {[%emt 0:00:00]} Qd7+ {[%emt 0:00:44]} 44. Kc3 {[%emt 0:00:00]} Qd4+ {[%emt 0:00:37]} 45. Kb3 {[%emt 0:00:00]} Qd6 {[%emt 0:00:23]} 46. Kc2 {[%emt 0:00:00]} Qc6 {[%emt 0:01:29]} 47. Qd3 {[%emt 0:00:00]} Qa4+ {[%emt 0:02:03]} 48. Kd2 {[%emt 0:00:00]} Qa5+ {[%emt 0:00:35]} 49. Qc3 {[%emt 0:00:00]} Qd8+ {[%emt 0:00:15]} 50. Ke3 {[%emt 0:00:00]} Qe7+ {[%emt 0:01:21]} 51. Kf2 {[%emt 0:00:00]} Qd6 {[%emt 0:00:26]} 52. b3 {[%emt 0:00:00]} Qe7 {[%emt 0:00:22]} 53. Qd3 {[%emt 0:00:00]} Qa7 {[%emt 0:00:17]} 54. Ke3 {[%emt 0:00:00]} Qb6 {[%emt 0:02:33]} 55. f5 {[%emt 0:00:00]} Qc7 {[%emt 0:00:44]} 56. Kf3 {[%emt 0:00:09]} Qb7+ {[%emt 0:01:41]} 57. Kg4 {[%emt 0:01:24]} Qe7 {[%emt 0:04:07]} 58. Qf3 {[%emt 0:02:41]} Qd6 {[%emt 0:03:36]} 59. Kh5 {[%emt 0:01:58]} Kh7 {[%emt 0:02:15]} 60. Qe3 {[%emt 0:02:23]} Qf8 {[%emt 0:01:16]} 61. g4 {[%emt 0:01:05]} Qd6 {[%emt 0:02:12]} 62. Qxh6+ {[%emt 0:00:35]} Kg8 {[%emt 0:00:04]} 63. Qe3 {[%emt 0:00:51]} Qd4 {[%emt 0:01:19]} 64. Qf3 {[%emt 0:00:35]} Qd8 {[%emt 0:00:28]} 65. g5 {[%emt 0:00:30]} Kg7 {[%emt 0:05:51] normal} 1-0

[Event "GER-ch Youth U16w 2019"]
[Site "Willingen"]
[Date "2019.06.13"]
[Round "7.1"]
[White "Glinzner, Alva"]
[Black "Bardorz, Jana"]
[Result "1/2-1/2"]
[ECO "C68"]
[WhiteElo "1833"]
[BlackElo "1769"]
[Annotator "NA RC"]
[PlyCount "107"]
[EventDate "2019.06.07"]
[EventType "swiss"]
[EventRounds "9"]
[EventCountry "GER"]
[SourceTitle "playchess.com"]
[Source "ChessBase"]
[SourceQuality "1"]
[TimeControl "40/5400+30:1800+30"]

1. e4 {[%emt 0:00:00]} e5 {[%emt 0:00:00]} 2. Nf3 {[%emt 0:00:00]} Nc6 {[%emt 0:00:00]} 3. Bb5 {[%emt 0:00:00]} a6 {[%emt 0:00:00]} 4. Bxc6 {[%emt 0:00:00]} dxc6 {[%emt 0:00:00]} 5. O-O {[%emt 0:00:05]} f6 {[%emt 0:03:25]} 6. d4 {[%emt 0:00:09]} exd4 {[%emt 0:00:51]} 7. Nxd4 {[%emt 0:00:07]} c5 {[%emt 0:01:57]} 8. Ne2 {[%emt 0:00:19]} Qxd1 {[%emt 0:01:26]} 9. Rxd1 {[%emt 0:00:05]} Bd7 {[%emt 0:01:59]} 10. Nbc3 {[%emt 0:00:19]} O-O-O {[%emt 0:02:16]} 11. Be3 {[%emt 0:00:20]} Bd6 {[%emt 0:06:25]} 12. f3 {[%emt 0:06:56]} Ne7 {[%emt 0:02:52]} 13. Nf4 {[%emt 0:02:36]} b6 {[%emt 0:09:01]} 14. Nfd5 {[%emt 0:00:33]} Kb7 {[%emt 0:03:58]} 15. Nxe7 {[%emt 0:05:21]} Bxe7 {[%emt 0:02:20]} 16. Nd5 {[%emt 0:00:42]} Bd6 {[%emt 0:02:17]} 17. Rd2 {[%emt 0:01:50]} Be5 {[%emt 0:08:05]} 18. Rad1 {[%emt 0:06:42]} Be6 {[%emt 0:05:20]} 19. b3 {[%emt 0:01:53]} c6 {[%emt 0:04:36]} 20. Nf4 {[%emt 0:00:54]} Rxd2 {[%emt 0:07:07]} 21. Rxd2 {[%emt 0:00:06]} Bc8 {[%emt 0:02:36]} 22. Nh5 {[%emt 0:08:26]} g6 {[%emt 0:06:02]} 23. Ng3 {[%emt 0:07:05]} Kc7 {[%emt 0:02:50]} 24. f4 {[%emt 0:02:31]} Bd6 {[%emt 0:01:14]} 25. Kf2 {[%emt 0:02:32]} Rd8 {[%emt 0:03:20]} 26. Kf3 {[%emt 0:04:34]} Be6 {[%emt 0:02:27]} 27. c4 {[%emt 0:02:09]} b5 {[%emt 0:02:31]} 28. Rc2 {[%emt 0:00:37]} Kb6 {[%emt 0:03:48]} 29. Ne2 {[%emt 0:20:49]} Be7 {[%emt 0:02:22]} 30. g4 {[%emt 0:03:33]} g5 {[%emt 0:02:31]} 31. f5 {[%emt 0:02:42]} Bf7 {[%emt 0:00:27]} 32. Ng3 {[%emt 0:00:13]} Rh8 {[%emt 0:03:38]} 33. Bf2 {[%emt 0:14:45]} h5 {[%emt 0:02:41]} 34. Nxh5 {[%emt 0:02:25]} Bxh5 {[%emt 0:00:06]} 35. gxh5 {[%emt 0:00:02]} Rxh5 {[%emt 0:00:22]} 36. Bg3 {[%emt 0:00:04]} Rh8 {[%emt 0:03:26]} 37. Kg4 {[%emt 0:03:20]} Rd8 {[%emt 0:01:48]} 38. Bf2 {[%emt 0:01:50]} Bd6 {[%emt 0:01:31]} 39. b4 {[%emt 0:02:09]} bxc4 {[%emt 0:00:56]} 40. a4 {[%emt 0:00:28]} a5 {[%emt 0:00:48]} 41. bxa5+ {[%emt 0:06:24]} Kxa5 {[%emt 0:02:07]} 42. Rxc4 {[%emt 0:00:07]} Bxh2 {[%emt 0:07:46]} 43. Rxc5+ {[%emt 0:04:04]} Kxa4 {[%emt 0:01:36]} 44. Rxc6 {[%emt 0:00:05]} Be5 {[%emt 0:01:58]} 45. Re6 {[%emt 0:03:27]} Kb5 {[%emt 0:06:42]} 46. Rxe5+ {[%emt 0:07:34]} fxe5 {[%emt 0:00:10]} 47. f6 {[%emt 0:00:21]} Kc4 {[%emt 0:07:18]} 48. Kxg5 {[%emt 0:02:25]} Kd3 {[%emt 0:01:19]} 49. Kf5 {[%emt 0:00:29]} Rf8 {[%emt 0:00:39]} 50. Bh4 {[%emt 0:06:30]} Kd4 {[%emt 0:00:41]} 51. Bg5 {[%emt 0:00:50]} Rf7 {[%emt 0:00:38]} 52. Ke6 {[%emt 0:03:02]} Rxf6+ {[%emt 0:00:16]} 53. Bxf6 {[%emt 0:00:05]} Kxe4 {[%emt 0:00:06]} 54. Bxe5 {[%emt 0:00:05] normal} 1/2-1/2